Workbook

Sheet ورقة1
A1: Other examples
A2: 9029 | B2: =Salim_Tax(A2,$I$2,$J$2,$K$2,$L$2) -> 135.44 | E2: مثال على الشريحه الثانيه | I2: 0.015 | J2: 0.1 | K2: 0.15 | L2: 0.2
A3: 17245 | B3: =Salim_Tax(A3,$I$2,$J$2,$K$2,$L$2) -> 1120.21 | E3: الدخل السنوى | F3: 17245
A4: 49418 | B4: =Salim_Tax(A4,$I$2,$J$2,$K$2,$L$2) -> 7777.96 | E4: 11000 | F4: الاولى فى 10% | G4: =E4*0.1 -> 1100 | N4: Choos Percentage
A5: 11000 | B5: 165 | E5: 6245 | F5: الثانيه فى 15% | G5: =E5*0.15 -> 936.75
A6: 18500 | B6: 1223.75 | F6: المجموع * 55 % | G6: =ROUND(SUM(G4:G5)*0.55,2) -> 1120.21 | J6: =Salim_Tax($F3,$I$2,$J$2,$K$2,$L$2) -> 1120.21 | O6: =Salim_Tax($F3,$I$2,$J$2,$K$2,$L$2)
A7: 19895 | B7: 2316.2 | E7: مثال آخر على الشريحه الثانيه
A8: 22062 | B8: 2717.1 | E8: الدخل السنوى | F8: 18991
A9: 39736 | B9: 5986.78 | E9: 11000 | F9: الاولى فى 10% | G9: =E9*0.1 -> 1100
A10: 42633 | B10: 6522.73 | E10: 7500 | F10: الثانيه فى 15% | G10: =E10*0.15 -> 1125
A11: 23365 | B11: 2958.15 | E11: 491 | F11: الثالثة فى 20% | G11: =E11*0.2 -> 98.2
A12: 31822 | B12: 4522.7 | F12: المجموع * 92.5 % | G12: =ROUND(SUM(G9:G11)*0.925,2) -> 2148.96 | J12: =Salim_Tax($F8,$I$2,$J$2,$K$2,$L$2) -> 2148.96
A13: 12943 | B13: 765.3 | E13: مثال على الشريحه الثالثة
E14: الدخل السنوى | F14: 24966
E15: 11000 | F15: الاولى فى 10% | G15: =E15*0.1 -> 1100
E16: 7500 | F16: الثانيه فى 15% | G16: =E16*0.15 -> 1125
E17: 6466 | F17: الثالثة فى 20% | G17: =E17*0.2 -> 1293.2
F18: المجموع * 92.5 % | G18: =ROUND(SUM(G15:G17)*0.925,2) -> 3254.34 | J18: =Salim_Tax($F14,$I$2,$J$2,$K$2,$L$2) -> 3254.34
E19: مثال على الشريحه الثالثة
E20: الدخل السنوى | F20: 27000
E21: 11000 | F21: الاولى فى 10% | G21: =E21*0.1 -> 1100
E22: 7500 | F22: الثانيه فى 15% | G22: =E22*0.15 -> 1125
E23: 8500 | F23: الثالثة فى 20% | G23: =E23*0.2 -> 1700
F24: المجموع * 92.5 % | G24: =ROUND(SUM(G21:G23)*0.925,2) -> 3630.63 | J24: =Salim_Tax($F20,$I$2,$J$2,$K$2,$L$2) -> 3630.62
E25: مثال اخر
E26: الدخل السنوى | F26: 30000
E27: 11000 | F27: الاولى فى 10% | G27: =E27*0.1 -> 1100
E28: 7500 | F28: الثانيه فى 15% | G28: =E28*0.15 -> 1125
E29: 11500 | F29: الثالثة فى 20% | G29: =E29*0.2 -> 2300
F30: المجموع * 92.5 % | G30: =ROUND(SUM(G27:G29)*0.925,2) -> 4185.63 | J30: =Salim_Tax($F26,$I$2,$J$2,$K$2,$L$2) -> 4185.62

Sheet ورقة2

Sheet ورقة3
